bitfinex/quotes_BTCUSD_20241022
["timestamp","ask_amount","ask_price","bid_price","bid_amount"]
[1729609883554,5.60873897,67520.0,67519.0,0.000827]
[1729609883771,5.61873897,67520.0,67519.0,0.001827]
[1729609884251,5.60073897,67520.0,67519.0,0.000827]
[1729609884489,5.61073897,67520.0,67519.0,0.001827]
[1729609885408,5.61973897,67520.0,67519.0,0.002827]
[1729609885866,5.60073897,67520.0,67519.0,0.000827]
[1729609886301,5.62173897,67520.0,67519.0,0.002827]
[1729609886530,5.60773897,67520.0,67519.0,0.001827]
[1729609886763,5.61273897,67520.0,67519.0,0.001827]
[1729609886996,5.25849779,67520.0,67519.0,0.002827]
[1729609887237,5.16349779,67520.0,67519.0,0.002827]
[1729609887689,5.14949779,67520.0,67519.0,0.001827]
[1729609887914,5.16349779,67520.0,67519.0,0.002827]
[1729609888140,5.05139779,67520.0,67519.0,0.002827]
[1729609888800,5.04239779,67520.0,67519.0,0.001827]
[1729609889061,5.02839779,67520.0,67519.0,0.000827]
[1729609889271,2.06068443,67520.0,67519.0,0.000827]
[1729609889495,0.30906315,67520.0,67519.0,0.001827]
[1729609889747,0.31806315,67520.0,67519.0,0.001827]
[1729609890211,0.32106315,67520.0,67519.0,0.001827]
[1729609890457,0.30206315,67520.0,67519.0,0.000827]
[1729609890899,0.30806315,67520.0,67519.0,0.000827]
[1729609891130,0.61440741,67520.0,67519.0,0.000827]
[1729609892069,0.60940741,67520.0,67519.0,0.000827]
[1729609892263,0.61540741,67520.0,67519.0,0.000827]
[1729609892501,5.18499741,67520.0,67519.0,0.000827]
[1729609893016,5.18199741,67520.0,67519.0,0.000827]
[1729609893234,5.18599741,67520.0,67519.0,0.000827]
[1729609893674,5.17899741,67520.0,67519.0,0.000827]
[1729609893843,5.18399741,67520.0,67519.0,0.000827]
[1729609894071,5.18999741,67520.0,67519.0,0.000827]
[1729609894223,5.53524859,67520.0,67519.0,0.000827]
[1729609894426,5.36679741,67520.0,67519.0,0.000827]
[1729609895082,5.36679741,67520.0,67519.0,5.138e-05]
[1729609895287,5.29599741,67520.0,67519.0,5.138e-05]
[1729609895531,5.13689341,67520.0,67512.0,0.21755053]
[1729609895711,0.171119,67513.0,67512.0,0.21755053]
[1729609896052,0.319245,67512.0,67507.0,0.0022]
[1729609896274,0.023,67509.0,67507.0,0.0022]
[1729609896498,0.14895915,67508.0,67507.0,0.0022]
[1729609896941,0.14895915,67508.0,67507.0,0.150332]
[1729609898487,0.14895915,67508.0,67507.0,0.151332]
[1729609898708,0.17866707,67508.0,67507.0,0.152332]
[1729609898916,0.14895915,67508.0,67507.0,0.152332]
[1729609901201,0.32008915,67508.0,67507.0,0.0042]
[1729609901653,4.74754915,67508.0,67507.0,0.0042]
[1729609901880,4.89567915,67508.0,67507.0,0.0042]
[1729609902097,5.0446383,67508.0,67507.0,0.0032]
[1729609902553,5.0446383,67508.0,67507.0,0.0042]
[1729609902782,5.0446383,67508.0,67507.0,0.0032]
[1729609903002,5.0446383,67508.0,67507.0,0.0042]
[1729609903277,5.0446383,67508.0,67507.0,0.0032]
[1729609903492,5.0446383,67508.0,67507.0,0.0022]
[1729609903717,5.0466383,67508.0,67507.0,0.0022]
[1729609903969,4.74754915,67508.0,67507.0,0.0022]
[1729609904202,0.86708915,67508.0,67507.0,0.0022]
[1729609904945,0.86908915,67508.0,67507.0,0.0022]
[1729609905196,0.002,67508.0,67507.0,0.32481041]
[1729609905413,0.003,67508.0,67507.0,0.32481041]
[1729609905670,0.22167215,67515.0,67509.0,0.296253]
[1729609905898,0.001,67508.0,67507.0,0.62107441]
[1729609906336,0.21721723,67514.0,67509.0,0.296254]
[1729609906792,0.21721723,67514.0,67513.0,0.148119]
[1729609907021,0.21721723,67514.0,67512.0,0.148121]
[1729609907247,0.148124,67511.0,67508.0,0.148129]
[1729609907468,0.14895915,67510.0,67509.0,0.148127]
[1729609908619,0.14895915,67510.0,67509.0,0.149127]
[1729609909318,0.14895915,67510.0,67509.0,0.001]
[1729609909565,0.14895915,67510.0,67507.0,0.003026]
[1729609909780,0.25420849,67510.0,67509.0,0.001]
[1729609911122,0.42533449,67510.0,67509.0,0.001]
[1729609911377,0.42533449,67510.0,67507.0,0.003026]
[1729609911378,0.27113,67508.0,67507.0,0.003026]
[1729609911604,4.99567915,67508.0,67507.0,0.004026]
[1729609911841,5.1446383,67508.0,67507.0,0.005026]
[1729609912052,5.18898444,67508.0,67507.0,0.003026]
[1729609913022,5.18898444,67508.0,67507.0,0.004026]
[1729609913273,5.1446383,67508.0,67507.0,0.003026]
[1729609913539,5.21115751,67508.0,67507.0,0.003026]
[1729609914870,5.21315751,67508.0,67507.0,0.003026]
[1729609916066,5.21415751,67508.0,67507.0,0.003026]
[1729609916277,5.31655194,67508.0,67507.0,0.003026]
[1729609916492,5.42741729,67508.0,67507.0,0.003026]
[1729609917121,5.31655194,67508.0,67507.0,0.003026]
[1729609917339,5.42754833,67508.0,67507.0,0.003026]
[1729609917782,5.43328184,67508.0,67507.0,0.003026]
[1729609917999,5.41948545,67508.0,67507.0,0.003026]
[1729609920032,5.59793663,67508.0,67507.0,0.003026]
[1729609920289,5.78042855,67508.0,67507.0,0.003026]
[1729609920923,1.20479469,67508.0,67507.0,0.003026]
[1729609921140,5.55096946,67508.0,67507.0,0.003026]
[1729609921405,5.91355722,67508.0,67507.0,0.003026]
[1729609921618,5.54996946,67508.0,67507.0,0.003026]
[1729609921838,5.79131809,67508.0,67507.0,0.004026]
[1729609922065,5.95977164,67508.0,67507.0,0.004026]
[1729609922503,5.80132046,67508.0,67507.0,0.005026]
[1729609922720,5.96977164,67508.0,67507.0,0.005026]
[1729609922956,5.96977164,67508.0,67501.0,0.05999999]
[1729609923166,5.96977164,67508.0,67491.0,0.26274672]
[1729609923167,0.61641618,67492.0,67491.0,0.26274672]
[1729609923400,5.41951829,67492.0,67491.0,0.26274672]
[1729609923687,5.60540864,67492.0,67491.0,0.04107457]
[1729609923910,5.60540864,67492.0,67484.0,0.22167215]
[1729609923911,0.276178,67486.0,67484.0,0.22167215]
[1729609924129,0.276178,67486.0,67481.0,0.05999999]
[1729609924130,5.28690043,67486.0,67481.0,0.05999999]
[1729609924358,5.7969854,67486.0,67481.0,0.05999999]
[1729609924576,5.61103193,67486.0,67481.0,0.05999999]
[1729609924786,5.54655161,67486.0,67481.0,0.05999999]
[1729609925222,5.61302994,67486.0,67481.0,0.05999999]
[1729609925440,5.54455161,67486.0,67485.0,0.0187507]
[1729609925653,5.55855161,67486.0,67485.0,0.0187507]
[1729609926083,5.57255161,67486.0,67485.0,0.0187507]
[1729609927001,0.005,67476.0,67475.0,0.000838]
[1729609927279,0.59361033,67476.0,67475.0,0.000838]
[1729609927503,5.16920033,67476.0,67475.0,0.000838]
[1729609928259,5.35390033,67476.0,67475.0,0.000838]
[1729609928494,0.62510936,67473.0,67471.0,0.05999999]
[1729609928780,0.62510936,67473.0,67461.0,0.05999999]
[1729609928781,0.271231,67462.0,67461.0,0.05999999]
[1729609929036,5.16423133,67462.0,67461.0,0.05999999]
[1729609929290,2.69464133,67462.0,67461.0,0.05999999]
[1729609930817,0.79341033,67462.0,67461.0,0.05999999]
[1729609931057,0.84164133,67462.0,67461.0,0.05999999]
[1729609931329,0.84864133,67462.0,67461.0,0.05999999]
[1729609931567,0.70041033,67462.0,67461.0,0.05999999]
[1729609931808,2.49364133,67462.0,67461.0,0.05999999]
[1729609932031,2.58864133,67462.0,67461.0,0.05999999]
[1729609932283,2.40146181,67462.0,67461.0,0.05999999]
[1729609932532,0.59523081,67462.0,67461.0,0.05999999]
[1729609932807,0.27895915,67462.0,67461.0,0.20823299]
[1729609933047,0.2964,67477.0,67461.0,0.20823299]
[1729609933048,0.22167215,67485.0,67472.0,0.00017841]
[1729609933300,0.22167215,67485.0,67484.0,0.148183]
[1729609933792,0.16845118,67487.0,67484.0,0.296365]
[1729609934024,0.16845118,67487.0,67486.0,0.148178]
[1729609934257,0.14895915,67487.0,67486.0,0.148178]
[1729609934487,0.14895915,67487.0,67484.0,0.09677841]
[1729609934703,0.14895915,67486.0,67484.0,0.39314441]
[1729609934945,0.14895915,67486.0,67485.0,0.148181]
[1729609935268,0.14895915,67486.0,67484.0,0.09677841]
[1729609935360,0.2034674,67486.0,67484.0,0.00017841]
[1729609935608,0.4998254,67486.0,67480.0,0.0772]
[1729609935853,0.4998254,67486.0,67479.0,0.00017841]
[1729609935854,0.148188,67482.0,67479.0,0.00017841]
[1729609936103,0.16845118,67480.0,67476.0,0.0933]
[1729609936352,0.14895915,67479.0,67476.0,0.0933]
[1729609936706,0.14895915,67479.0,67478.0,0.148196]
[1729609936961,0.31741033,67479.0,67478.0,0.14837441]
[1729609937216,0.34915136,67479.0,67478.0,0.14837441]
[1729609938140,0.34915136,67479.0,67478.0,0.15137441]
[1729609938391,0.18070018,67479.0,67478.0,0.15137441]
[1729609938638,0.14895915,67479.0,67478.0,0.15137441]
[1729609939587,0.14895915,67479.0,67478.0,0.15537441]
[1729609941228,0.296302,67499.0,67487.0,0.00017841]
[1729609941445,0.296302,67499.0,67478.0,0.17545118]
[1729609941446,0.22167215,67490.0,67489.0,0.14835041]
[1729609941671,0.02266722,67500.0,67496.0,0.148156]
[1729609941884,1.75210915,67499.0,67495.0,0.148157]
[1729609942117,1.159,67498.0,67496.0,0.148155]
[1729609942359,0.14895915,67497.0,67494.0,0.148161]
[1729609942859,0.14895915,67497.0,67492.0,0.00017841]
[1729609943121,0.29711315,67497.0,67493.0,0.148163]
[1729609943319,0.29711315,67497.0,67496.0,0.001]
[1729609943544,4.87270315,67497.0,67496.0,0.001]
[1729609943765,4.970396,67497.0,67496.0,0.001]
[1729609944218,4.970396,67497.0,67496.0,0.002]
[1729609944453,4.970396,67497.0,67496.0,0.001]
[1729609944667,0.14895915,67497.0,67496.0,0.31660718]
[1729609944896,0.14895915,67497.0,67496.0,0.31678559]
[1729609944897,0.15695915,67497.0,67496.0,0.31678559]
[1729609945114,0.018,67497.0,67496.0,0.40038559]
[1729609945318,0.01,67497.0,67496.0,0.40038559]
[1729609945521,0.02,67497.0,67496.0,0.40138559]
[1729609945935,0.01,67497.0,67496.0,0.40038559]
[1729609946361,0.01,67497.0,67496.0,0.40138559]
[1729609946779,0.001654,67508.0,67502.0,0.296287]
[1729609946983,0.14895915,67507.0,67505.0,0.16845118]
[1729609947192,0.29709215,67507.0,67505.0,0.16845118]
[1729609947411,0.14895915,67507.0,67505.0,0.16845118]
[1729609947626,0.29709215,67507.0,67505.0,0.16845118]
[1729609947853,0.148134,67506.0,67505.0,0.16845118]
[1729609948035,0.148142,67503.0,67501.0,0.00017841]
[1729609948247,0.53485587,67506.0,67501.0,0.14832341]
[1729609948248,0.14895915,67502.0,67501.0,0.14832341]
[1729609948460,0.14895915,67502.0,67500.0,0.16845118]
[1729609948461,0.008,67507.0,67505.0,0.001]
[1729609948683,0.008,67507.0,67506.0,0.31676359]
[1729609948684,0.15695915,67507.0,67506.0,0.31676359]
[1729609949588,0.008,67507.0,67506.0,0.41136359]
[1729609950224,0.001654,67508.0,67507.0,0.148132]
[1729609950474,0.15061315,67508.0,67507.0,0.14831041]
[1729609950676,0.15061315,67508.0,67506.0,0.26405118]
[1729609950892,0.14895915,67507.0,67506.0,0.16945118]
[1729609951112,0.24724926,67507.0,67506.0,0.16945118]
[1729609951345,0.23824926,67507.0,67506.0,0.16845118]
[1729609951775,0.14895915,67507.0,67506.0,0.31658518]
[1729609952016,0.001654,67508.0,67507.0,0.14831041]
[1729609952228,0.15061315,67508.0,67507.0,0.14831041]
[1729609953289,0.18065207,67508.0,67507.0,0.00017841]
[1729609953486,0.15061315,67508.0,67507.0,0.00017841]
[1729609953690,0.16061315,67508.0,67507.0,0.31776159]
[1729609954353,0.17061315,67508.0,67507.0,0.31876159]
[1729609954558,0.17061315,67508.0,67507.0,0.15031041]
[1729609955179,0.17061315,67508.0,67507.0,0.00217841]
[1729609955391,0.17061315,67508.0,67507.0,0.15031041]
[1729609956665,0.38040646,67508.0,67507.0,0.002]
[1729609956880,0.57185764,67508.0,67507.0,0.002]
[1729609957094,5.15244764,67508.0,67507.0,0.002]
[1729609957308,5.25244764,67508.0,67507.0,0.0021001]
[1729609959709,5.25244764,67508.0,67507.0,0.002]
[1729609961527,5.08399646,67508.0,67507.0,0.002]
[1729609962611,5.16439646,67508.0,67507.0,0.002]
[1729609962817,5.17639646,67508.0,67507.0,0.002]
[1729609963453,5.17439646,67508.0,67507.0,0.002]
[1729609964281,5.18009013,67508.0,67507.0,0.002]
[1729609964501,5.18209013,67508.0,67507.0,0.002]
[1729609965820,5.18009013,67508.0,67507.0,0.002]
[1729609973138,5.18209013,67508.0,67507.0,0.002]
[1729609973361,5.18009013,67508.0,67507.0,0.002]
[1729609974655,5.18209013,67508.0,67507.0,0.002]
[1729609975724,5.17209013,67508.0,67507.0,0.001]
[1729609976148,5.18609013,67508.0,67507.0,0.002]
[1729609976355,5.17209013,67508.0,67507.0,0.001]
[1729609976569,5.17009013,67508.0,67507.0,0.001]
[1729609976790,5.17009013,67508.0,67494.0,0.22167215]
[1729609976791,0.123,67502.0,67494.0,0.22167215]
[1729609977046,0.023,67496.0,67494.0,0.22167215]
[1729609977263,0.29711815,67495.0,67492.0,0.49331618]
[1729609977925,0.29711815,67495.0,67494.0,0.002]
[1729609978369,0.38839057,67495.0,67494.0,0.002]
[1729609978591,0.38839057,67495.0,67492.0,0.1767]
[1729609978841,0.38839057,67495.0,67493.0,0.148162]
[1729609978842,0.24023157,67495.0,67493.0,0.148162]
[1729609979046,0.24123157,67495.0,67494.0,0.148161]
[1729609979261,0.24023157,67495.0,67492.0,0.1767]
[1729609979473,0.05595396,67494.0,67492.0,0.1767]
[1729609979682,0.14995915,67495.0,67492.0,0.324865]
[1729609979683,0.14895915,67493.0,67492.0,0.324865]
[1729609979891,0.14895915,67493.0,67492.0,0.326865]
[1729609980311,0.14895915,67493.0,67492.0,0.324865]
[1729609980757,0.14895915,67493.0,67492.0,0.326865]
[1729609981214,0.14895915,67493.0,67488.0,0.16872969]
[1729609981215,0.16852986,67493.0,67488.0,0.0001001]
[1729609981428,0.16852986,67493.0,67486.0,0.0911]
[1729609981429,0.319331,67492.0,67486.0,0.0911]
[1729609981646,0.14895915,67491.0,67486.0,0.0911]
[1729609981865,0.21256134,67491.0,67487.0,0.296353]
[1729609982088,0.21256134,67491.0,67488.0,0.148173]
[1729609982300,0.21256134,67491.0,67487.0,0.296353]
[1729609982532,0.21256134,67491.0,67488.0,0.148174]
[1729609982761,0.14895915,67491.0,67488.0,0.148173]
[1729609982989,0.14895915,67491.0,67489.0,0.14817]
[1729609983200,0.14895915,67491.0,67488.0,0.296348]
[1729609983407,0.14895915,67491.0,67488.0,0.298348]
[1729609983617,0.14895915,67491.0,67489.0,0.148171]
[1729609983827,0.14895915,67491.0,67488.0,0.298348]
[1729609984062,0.14895915,67491.0,67490.0,0.14817]
[1729609984266,0.14895915,67491.0,67490.0,0.14834841]
[1729609985400,0.14895915,67491.0,67487.0,0.00017841]
[1729609985618,0.44529515,67491.0,67486.0,0.0911]
[1729609985907,0.14817,67490.0,67486.0,0.0911]
[1729609986154,0.23793837,67489.0,67486.0,0.0911]
[1729609986399,0.23793837,67489.0,67488.0,0.148174]
[1729609986647,0.29713215,67489.0,67486.0,0.0911]
[1729609986888,0.14895915,67489.0,67486.0,0.239277]
[1729609987121,0.14895915,67489.0,67486.0,0.0931]
[1729609987361,0.148175,67488.0,67486.0,0.0931]
[1729609987618,0.00562813,67497.0,67486.0,0.0931]
[1729609987619,0.26010768,67487.0,67486.0,0.241278]
[1729609987854,0.22167215,67499.0,67491.0,0.00017841]
[1729609988097,0.26795915,67498.0,67493.0,0.296327]
[1729609988333,0.14895915,67498.0,67492.0,0.0801]
[1729609988578,0.14895915,67498.0,67493.0,0.296323]
[1729609988789,0.148155,67497.0,67493.0,0.148163]
[1729609989021,0.14895915,67496.0,67493.0,0.148163]
[1729609989785,0.14895915,67496.0,67492.0,0.0801]
[1729609990048,0.14895915,67496.0,67495.0,0.14833741]
[1729609990323,0.14895915,67496.0,67495.0,0.24173741]
[1729609990532,0.15095915,67496.0,67495.0,0.24173741]
[1729609991017,0.14895915,67496.0,67495.0,0.24173741]
[1729609991484,0.14895915,67496.0,67495.0,0.24373741]
[1729609992187,0.001654,67498.0,67497.0,0.14833241]
[1729609992455,0.001654,67498.0,67497.0,0.33699493]
[1729609992664,0.001654,67498.0,67497.0,0.33203241]
[1729609993322,0.001654,67498.0,67497.0,0.50048359]
[1729609993529,0.001654,67498.0,67497.0,0.33403241]
[1729609993953,0.001654,67498.0,67497.0,0.50248359]
[1729609994195,0.001654,67498.0,67497.0,0.50048359]
[1729609994424,0.001654,67498.0,67497.0,0.50248359]
[1729609994648,0.001654,67498.0,67497.0,0.50448359]
[1729609994913,0.001654,67498.0,67497.0,0.50648359]
[1729609995092,0.001654,67498.0,67497.0,0.50448359]
[1729609995453,0.001654,67498.0,67497.0,0.67493477]
[1729609995840,0.001654,67498.0,67497.0,0.67293477]
[1729609996054,0.001654,67498.0,67497.0,0.67093477]
[1729609996460,0.001654,67498.0,67497.0,0.67393477]
[1729609996675,0.001654,67498.0,67497.0,0.67593477]
[1729609997778,0.001694,67508.0,67497.0,0.67593477]
[1729609997779,0.001694,67508.0,67507.0,0.16331041]
[1729609997927,0.001694,67508.0,67507.0,0.51062376]
[1729609998110,0.001694,67508.0,67507.0,0.50766159]
[1729609999158,0.001694,67508.0,67507.0,0.50966159]
[1729609999580,0.001694,67508.0,67507.0,0.51266159]
[1729610002795,0.001694,67508.0,67507.0,0.51466159]
[1729610003362,0.001694,67508.0,67507.0,0.51266159]
[1729610004091,0.001694,67508.0,67507.0,0.51466159]
[1729610004287,0.001694,67508.0,67507.0,0.51266159]
[1729610004695,0.001694,67508.0,67507.0,0.15331041]
[1729610004855,0.001694,67508.0,67507.0,0.00517841]
[1729610005088,0.32874215,67508.0,67507.0,0.005]
[1729610005909,0.32874215,67508.0,67507.0,0.003]
[1729610006118,0.18061215,67508.0,67507.0,0.005]
[1729610006313,0.15065315,67508.0,67507.0,0.150132]
[1729610006517,0.001694,67508.0,67507.0,0.15031041]
[1729610006722,0.001694,67508.0,67507.0,0.32867272]
[1729610006921,0.001694,67508.0,67507.0,0.32871041]
[1729610007208,0.001694,67508.0,67507.0,0.33371041]
[1729610007418,0.001694,67508.0,67507.0,0.33071041]
[1729610007624,0.001694,67508.0,67507.0,0.32871041]
[1729610007824,0.001694,67508.0,67507.0,0.32971041]
[1729610009408,0.001694,67508.0,67507.0,0.24811041]
[1729610009605,0.001694,67508.0,67507.0,0.15431041]
[1729610010617,0.29878315,67508.0,67507.0,0.00117841]
[1729610010819,0.29878315,67508.0,67507.0,0.001]
[1729610011017,0.32375166,67508.0,67507.0,0.001]
[1729610012056,0.148132,67507.0,67506.0,0.0001001]
[1729610012301,0.29709115,67507.0,67506.0,0.0001001]
[1729610013662,0.14895915,67507.0,67506.0,0.1482341]
[1729610013868,0.001694,67508.0,67507.0,0.14831041]
[1729610014473,0.001694,67508.0,67507.0,0.15127279]
[1729610014600,0.001694,67508.0,67507.0,0.14831041]
[1729610016096,0.001694,67508.0,67507.0,0.15127269]
[1729610016314,0.001694,67508.0,67507.0,0.16627269]
[1729610016796,0.00151559,67508.0,67507.0,0.16627269]
[1729610017427,0.00151559,67508.0,67507.0,0.17127269]
[1729610017841,0.00151559,67508.0,67507.0,0.17327269]
[1729610018266,0.00151559,67508.0,67507.0,0.42223184]
[1729610018496,0.00151559,67508.0,67507.0,0.41926956]
[1729610018714,0.00151559,67508.0,67507.0,0.41726956]
[1729610019140,0.00151559,67508.0,67507.0,0.26831041]
[1729610019365,0.00151559,67508.0,67507.0,0.15831041]
[1729610020048,0.00151559,67508.0,67507.0,0.15331041]
[1729610020467,0.00151559,67508.0,67507.0,0.15831041]
[1729610020704,0.00151559,67508.0,67507.0,0.15631041]
[1729610020943,0.00151559,67508.0,67507.0,0.15331041]
[1729610021181,0.00151559,67508.0,67507.0,0.15531041]
[1729610021389,0.00151559,67508.0,67507.0,0.15831041]
[1729610022255,0.00151559,67508.0,67507.0,0.15331041]
[1729610022905,0.00151559,67508.0,67507.0,0.15341051]
[1729610023124,0.00151559,67508.0,67507.0,0.15041051]
[1729610023352,0.00151559,67508.0,67507.0,0.15341051]
[1729610023793,0.00151559,67508.0,67507.0,0.15141051]
[1729610024006,0.00151559,67508.0,67507.0,0.15341051]
[1729610024234,0.00151559,67508.0,67507.0,0.14841051]
[1729610024439,0.00151559,67508.0,67507.0,0.15141051]
[1729610024647,0.00151559,67508.0,67507.0,0.15341051]
[1729610028318,0.00151559,67508.0,67507.0,0.15331041]
[1729610038007,0.00151559,67508.0,67507.0,0.15413641]
[1729610039907,0.00151559,67508.0,67507.0,0.15213641]
[1729610040127,0.00151559,67508.0,67507.0,0.14913641]
[1729610040346,0.00151559,67508.0,67507.0,0.15413641]
[1729610040839,0.15047474,67508.0,67507.0,0.005826]
[1729610041077,0.21012391,67508.0,67507.0,0.005826]
[1729610041561,0.21012391,67508.0,67507.0,0.003826]
[1729610041795,0.21012391,67508.0,67507.0,0.000826]
[1729610042041,0.15047474,67508.0,67507.0,0.005826]
[1729610042530,0.15047474,67508.0,67507.0,0.002826]
[1729610042531,0.29860474,67508.0,67507.0,0.002826]
[1729610042791,0.32160474,67508.0,67507.0,0.002826]
[1729610043244,0.32160474,67508.0,67507.0,0.000826]
[1729610049404,4.89719474,67508.0,67507.0,0.000826]
[1729610049631,5.04615389,67508.0,67507.0,0.000826]
[1729610049868,5.05015389,67508.0,67507.0,0.000826]
[1729610050829,2.57160474,67508.0,67507.0,0.000826]
[1729610051365,1.02247474,67508.0,67507.0,0.000826]
[1729610051871,1.17060474,67508.0,67507.0,0.000826]
[1729610052077,1.19360474,67508.0,67507.0,0.000826]
[1729610052327,1.04547474,67508.0,67507.0,0.000826]
[1729610052588,4.75706474,67508.0,67507.0,0.000826]
[1729610052790,4.90519474,67508.0,67507.0,0.000826]
[1729610053481,1.24860474,67508.0,67507.0,0.000826]
[1729610053707,1.10047474,67508.0,67507.0,0.000826]
[1729610053956,1.06947474,67508.0,67507.0,0.000826]
[1729610054181,1.21760474,67508.0,67507.0,0.000826]
[1729610054420,1.01360474,67508.0,67507.0,0.000826]
[1729610054651,0.74647474,67508.0,67507.0,0.000826]
[1729610055590,0.89460474,67508.0,67507.0,0.000826]
[1729610056797,0.86260474,67508.0,67507.0,0.000826]
[1729610058203,0.82760474,67508.0,67507.0,0.000826]
[1729610058421,0.86986722,67508.0,67507.0,0.000826]
[1729610058843,0.76560474,67508.0,67507.0,0.000826]
[1729610059275,0.18147474,67508.0,67507.0,0.000826]
[1729610059486,0.32960474,67508.0,67507.0,0.000826]
[1729610064084,5.18379474,67508.0,67507.0,0.000826]
[1729610064311,5.34881274,67508.0,67507.0,0.000826]
[1729610064527,5.60711899,67508.0,67507.0,0.000826]
[1729610064743,5.61911899,67508.0,67507.0,0.000826]
[1729610064949,5.55456415,67508.0,67507.0,0.000826]
[1729610065171,5.55056415,67508.0,67507.0,0.000826]
[1729610065386,5.55256415,67508.0,67507.0,0.000826]
[1729610065612,5.54856415,67508.0,67507.0,0.000826]
[1729610066271,5.55856415,67508.0,67507.0,0.000826]
[1729610066474,5.51236238,67508.0,67507.0,0.000826]
[1729610066676,5.52636238,67508.0,67507.0,0.000826]
[1729610066896,5.51236238,67508.0,67507.0,0.000826]
[1729610068182,5.51436238,67508.0,67507.0,0.000826]
[1729610068383,5.51236238,67508.0,67507.0,0.000826]
[1729610068831,5.51336238,67508.0,67507.0,0.000826]
[1729610069060,5.51436238,67508.0,67507.0,0.000826]
[1729610069523,5.68530488,67508.0,67507.0,0.000826]
[1729610069738,5.63912153,67508.0,67507.0,0.000826]
[1729610070526,5.63712153,67508.0,67507.0,0.000826]
[1729610071392,5.61495597,67508.0,67507.0,0.000826]
[1729610071612,5.52634379,67508.0,67507.0,0.000826]
[1729610072256,5.61694972,67508.0,67507.0,0.000826]
[1729610072686,5.61494972,67508.0,67507.0,0.000826]
[1729610073319,5.61694972,67508.0,67507.0,0.000826]
[1729610073737,5.61494972,67508.0,67507.0,0.000826]
[1729610074305,5.616881,67508.0,67507.0,0.000826]
[1729610074515,5.614881,67508.0,67507.0,0.000826]
[1729610075134,5.620809,67508.0,67507.0,0.000826]
[1729610075814,5.58040949,67508.0,67507.0,0.000826]
[1729610076459,5.62281189,67508.0,67507.0,0.000826]
[1729610076699,5.66901508,67508.0,67507.0,0.000826]
[1729610077826,5.58041296,67508.0,67507.0,0.000826]
[1729610079790,0.005,67499.0,67498.0,0.000826]
[1729610080017,0.77043703,67499.0,67498.0,0.000826]
[1729610080235,5.70964813,67499.0,67498.0,0.000826]
[1729610080437,5.82043056,67499.0,67498.0,0.000826]
[1729610080876,5.70964813,67499.0,67498.0,0.000826]
[1729610081096,5.66343736,67499.0,67498.0,0.000826]
[1729610081306,5.75705825,67499.0,67498.0,0.000826]
[1729610081549,5.58860707,67499.0,67498.0,0.000826]
[1729610081756,5.39592108,67499.0,67498.0,0.000826]
[1729610081964,5.3434583,67499.0,67498.0,0.000826]
[1729610082242,5.40992108,67499.0,67498.0,0.000826]
[1729610082427,5.50701946,67499.0,67498.0,0.000826]
[1729610082676,5.49301946,67499.0,67498.0,0.000826]
[1729610082885,5.50701946,67499.0,67498.0,0.000826]
[1729610083101,5.52101946,67499.0,67498.0,0.000826]
[1729610083743,5.60964035,67499.0,67498.0,0.000826]
[1729610085617,5.52679569,67499.0,67498.0,0.000826]
[1729610086045,5.63757812,67499.0,67498.0,0.000826]
[1729610086946,5.52679569,67499.0,67498.0,0.000826]
[1729610087670,5.69297014,67499.0,67498.0,0.000826]
[1729610087906,5.69497014,67499.0,67498.0,0.000826]
[1729610088160,5.63035756,67499.0,67498.0,0.000826]
[1729610088403,5.41140438,67499.0,67498.0,0.000826]
[1729610088687,5.57499763,67499.0,67498.0,0.000826]
[1729610088939,5.57499763,67499.0,67474.0,0.0966]
[1729610088940,0.1712,67476.0,67474.0,0.0966]
[1729610089187,0.171194,67479.0,67474.0,0.0966]
[1729610089395,0.148198,67477.0,67475.0,0.0001001]
[1729610089839,0.023,67479.0,67475.0,0.0001001]
[1729610090081,0.023,67478.0,67475.0,0.0001001]
[1729610090289,0.148191,67481.0,67475.0,0.0001001]
[1729610090498,0.171192,67480.0,67475.0,0.0001001]
[1729610091160,0.023,67480.0,67475.0,0.0001001]
[1729610091366,0.148197,67478.0,67475.0,0.0001001]
[1729610091581,0.14895915,67477.0,67475.0,0.0001001]
[1729610093142,0.14895915,67477.0,67474.0,0.0966]
[1729610094437,0.22167215,67486.0,67481.0,0.148189]
[1729610094648,0.14895915,67485.0,67482.0,0.244686]
[1729610094865,0.14895915,67485.0,67482.0,0.0965]
[1729610095315,0.14895915,67485.0,67482.0,0.09667841]
[1729610095542,0.14895915,67485.0,67482.0,0.24486441]
[1729610095751,0.14895915,67485.0,67483.0,0.148184]
[1729610095960,0.15195915,67485.0,67482.0,0.24486541]
[1729610096412,0.15495915,67485.0,67482.0,0.24486541]
[1729610096651,0.15195915,67485.0,67482.0,0.09667841]
[1729610096852,0.15195915,67485.0,67482.0,0.24486541]
[1729610097064,0.14895915,67485.0,67482.0,0.24486541]
[1729610097325,0.14895915,67485.0,67482.0,0.09667841]
[1729610097541,0.15295915,67485.0,67482.0,0.09667841]
[1729610097958,0.05974842,67484.0,67482.0,0.09667841]
[1729610098169,0.14895915,67483.0,67482.0,0.09667841]
[1729610099250,0.14895915,67483.0,67482.0,0.24486541]
[1729610099467,0.14895915,67483.0,67482.0,0.09667841]
[1729610099910,0.15195915,67483.0,67482.0,0.09667841]
[1729610100364,0.15195915,67483.0,67482.0,0.24486541]
[1729610100576,0.003,67483.0,67482.0,0.41331659]
[1729610100796,0.003,67483.0,67482.0,0.17547841]
[1729610101715,0.006,67483.0,67482.0,0.17547841]
[1729610101924,0.006,67483.0,67482.0,0.32366541]
[1729610103472,0.006,67483.0,67482.0,0.33866541]
[1729610104217,0.006,67483.0,67482.0,0.34066541]
[1729610104468,0.003,67483.0,67482.0,0.34066541]
[1729610104716,0.22167215,67498.0,67497.0,0.17437841]
[1729610104927,0.22167215,67498.0,67497.0,0.32253241]
[1729610105140,0.22167215,67498.0,67497.0,0.49098359]
[1729610105384,0.148137,67505.0,67499.0,0.148149]
[1729610105592,0.22167215,67502.0,67501.0,0.00017841]
[1729610105807,0.14895915,67502.0,67501.0,0.00017841]
[1729610106014,0.14895915,67502.0,67501.0,0.14832341]
[1729610106232,0.14895915,67502.0,67501.0,0.00017841]
[1729610107093,0.001652,67507.0,67506.0,0.14831241]
[1729610107306,0.001652,67507.0,67506.0,0.32477479]
[1729610107585,0.001652,67507.0,67506.0,0.49026359]
[1729610111096,0.001652,67507.0,67506.0,0.49826359]